[Event "Titled Tuesday Blitz January 31 Early 2023"]
[White "Abdilkhair, Abilmansur"]
[Black "Kvaloy, Aksel Bu"]
[WhiteFideId "13716417"]
[BlackFideId "1528815"]
[WhiteElo "2268"]
[BlackElo "2321"]
[Result "0-1"]
[Round "11"]
[TimeControl "180+2"]
[Date "2023.01.31"]
[WhiteClock "0:00:05"]
[BlackClock "0:00:11"]

1. d4 {[%clk 0:03:00]}  Nf6 {[%clk 0:02:59]} 2. c4 {[%clk 0:02:59]}  e6 {[%clk 0:03:00]} 3. g3 {[%clk 0:02:59]}  d5 {[%clk 0:03:00]} 4. Bg2 {[%clk 0:03:00]}  dxc4 {[%clk 0:03:00]} 5. Qa4+ {[%clk 0:02:58]}  Nbd7 {[%clk 0:03:00]} 6. Qxc4 {[%clk 0:02:59]}  a6 {[%clk 0:03:00]} 7. Nf3 {[%clk 0:02:59]}  b5 {[%clk 0:03:00]} 8. Qc6 {[%clk 0:02:58]}  Ra7 {[%clk 0:02:59]} 9. Bf4 {[%clk 0:02:55]}  Bb7 {[%clk 0:02:58]} 10. Qc1 {[%clk 0:02:53]}  c5 {[%clk 0:02:58]} 11. O-O {[%clk 0:02:50]}  Be7 {[%clk 0:02:55]} 12. Rd1 {[%clk 0:02:42]}  O-O {[%clk 0:02:53]} 13. dxc5 {[%clk 0:02:34]}  Bxc5 {[%clk 0:02:51]} 14. Nc3 {[%clk 0:02:27]}  Qb6 {[%clk 0:02:48]} 15. Rf1 {[%clk 0:02:00]}  Raa8 {[%clk 0:02:46]} 16. a3 {[%clk 0:01:47]}  a5 {[%clk 0:02:36]} 17. Qb1 {[%clk 0:01:43]}  Rac8 {[%clk 0:02:20]} 18. Nd2 {[%clk 0:01:42]}  Bxg2 {[%clk 0:02:09]} 19. Kxg2 {[%clk 0:01:43]}  Rfd8 {[%clk 0:02:03]} 20. Nde4 {[%clk 0:01:38]}  Nxe4 {[%clk 0:01:57]} 21. Qxe4 {[%clk 0:01:36]}  Bd4 {[%clk 0:01:54]} 22. Rac1 {[%clk 0:01:17]}  Bxc3 {[%clk 0:01:49]} 23. Rxc3 {[%clk 0:01:14]}  Rxc3 {[%clk 0:01:48]} 24. bxc3 {[%clk 0:01:15]}  Nf6 {[%clk 0:01:47]} 25. Qf3 {[%clk 0:01:11]}  Qc5 {[%clk 0:01:45]} 26. Rb1 {[%clk 0:01:04]}  h6 {[%clk 0:01:35]} 27. Qb7 {[%clk 0:00:52]}  Qxa3 {[%clk 0:01:29]} 28. Qxb5 {[%clk 0:00:40]}  Qxc3 {[%clk 0:01:25]} 29. Be5 {[%clk 0:00:41]}  Qc2 {[%clk 0:01:06]} 30. Bxf6 {[%clk 0:00:33]}  gxf6 {[%clk 0:01:07]} 31. Qxa5 {[%clk 0:00:27]}  Qe4+ {[%clk 0:00:18]} 32. f3 {[%clk 0:00:19]}  Qxe2+ {[%clk 0:00:17]} 33. Kh3 {[%clk 0:00:15]}  Rd5 {[%clk 0:00:15]} 34. Rb8+ {[%clk 0:00:10]}  Kg7 {[%clk 0:00:14]} 35. Qa8 {[%clk 0:00:08]}  Rh5+ {[%clk 0:00:11]} 36. Kg4 {[%clk 0:00:08]}  f5+ {[%clk 0:00:12]} 37. Kf4 {[%clk 0:00:07]}  Qd2+ {[%clk 0:00:10]} 38. Ke5 {[%clk 0:00:07]}  f4+ {[%clk 0:00:11]} 39. Ke4 {[%clk 0:00:05]}  Qe3# {[%clk 0:00:11]} 0-1


[Site "https://www.chess.com"]

[Event "Titled Tuesday Blitz January 31 Early 2023"]
[White "Kochetov, Andrey"]
[Black "Rakhmatullaev, Almas"]
[WhiteFideId "24130532"]
[BlackFideId "14205793"]
[WhiteElo "2165"]
[BlackElo "2275"]
[Result "1/2-1/2"]
[Round "11"]
[TimeControl "180+2"]
[Date "2023.01.31"]
[WhiteClock "0:00:05"]
[BlackClock "0:00:04"]

1. e4 {[%clk 0:03:00]}  e5 {[%clk 0:03:00]} 2. Nf3 {[%clk 0:03:00]}  Nf6 {[%clk 0:03:01]} 3. Nxe5 {[%clk 0:03:01]}  Nxe4 {[%clk 0:03:01]} 4. Qe2 {[%clk 0:03:00]}  Qe7 {[%clk 0:03:02]} 5. Qxe4 {[%clk 0:02:59]}  d6 {[%clk 0:03:02]} 6. d4 {[%clk 0:02:58]}  dxe5 {[%clk 0:03:03]} 7. dxe5 {[%clk 0:02:51]}  Nc6 {[%clk 0:03:03]} 8. Nc3 {[%clk 0:02:46]}  Qxe5 {[%clk 0:03:01]} 9. Bf4 {[%clk 0:02:35]}  Qxe4+ {[%clk 0:02:59]} 10. Nxe4 {[%clk 0:02:36]}  Bf5 {[%clk 0:02:59]} 11. Bd3 {[%clk 0:02:34]}  Nb4 {[%clk 0:02:57]} 12. O-O-O {[%clk 0:02:23]}  Nxd3+ {[%clk 0:02:56]} 13. Rxd3 {[%clk 0:02:18]}  Bxe4 {[%clk 0:02:56]} 14. Re1 {[%clk 0:02:18]}  f5 {[%clk 0:02:40]} 15. f3 {[%clk 0:02:15]}  Bb4 {[%clk 0:02:39]} 16. c3 {[%clk 0:02:03]}  O-O {[%clk 0:02:38]} 17. fxe4 {[%clk 0:01:58]}  fxe4 {[%clk 0:02:38]} 18. Rxe4 {[%clk 0:01:59]}  Ba5 {[%clk 0:02:39]} 19. Rd7 {[%clk 0:01:48]}  Rf7 {[%clk 0:02:38]} 20. Red4 {[%clk 0:01:41]}  Raf8 {[%clk 0:02:22]} 21. Rxf7 {[%clk 0:01:22]}  Rxf7 {[%clk 0:02:23]} 22. Rd8+ {[%clk 0:01:14]}  Rf8 {[%clk 0:02:23]} 23. Rxf8+ {[%clk 0:01:15]}  Kxf8 {[%clk 0:02:24]} 24. Kc2 {[%clk 0:01:15]}  Ke7 {[%clk 0:02:20]} 25. Kd3 {[%clk 0:01:13]}  Ke6 {[%clk 0:02:20]} 26. Ke4 {[%clk 0:01:13]}  c6 {[%clk 0:02:18]} 27. c4 {[%clk 0:01:09]}  g6 {[%clk 0:02:16]} 28. b3 {[%clk 0:01:08]}  a6 {[%clk 0:02:14]} 29. h3 {[%clk 0:01:06]}  Bc3 {[%clk 0:02:14]} 30. Bg3 {[%clk 0:01:03]}  Bf6 {[%clk 0:02:14]} 31. Bf4 {[%clk 0:01:03]}  g5 {[%clk 0:02:14]} 32. Be3 {[%clk 0:01:01]}  h5 {[%clk 0:02:15]} 33. g4 {[%clk 0:01:01]}  h4 {[%clk 0:02:13]} 34. Bb6 {[%clk 0:00:58]}  Be7 {[%clk 0:02:12]} 35. Be3 {[%clk 0:00:55]}  c5 {[%clk 0:02:11]} 36. a4 {[%clk 0:00:50]}  b6 {[%clk 0:02:04]} 37. Bd2 {[%clk 0:00:48]}  Bd8 {[%clk 0:02:00]} 38. b4 {[%clk 0:00:37]}  cxb4 {[%clk 0:01:54]} 39. Bxb4 {[%clk 0:00:36]}  Bf6 {[%clk 0:01:51]} 40. Bd2 {[%clk 0:00:29]}  Be7 {[%clk 0:01:49]} 41. Be3 {[%clk 0:00:24]}  Bd8 {[%clk 0:01:49]} 42. Bd4 {[%clk 0:00:24]}  Bc7 {[%clk 0:01:45]} 43. Bc3 {[%clk 0:00:23]}  Bf4 {[%clk 0:01:41]} 44. Bd4 {[%clk 0:00:16]}  Bc7 {[%clk 0:01:42]} 45. Be3 {[%clk 0:00:16]}  Bd8 {[%clk 0:01:41]} 46. Bd2 {[%clk 0:00:16]}  Bf6 {[%clk 0:01:25]} 47. Bb4 {[%clk 0:00:14]}  Be5 {[%clk 0:01:15]} 48. Bf8 {[%clk 0:00:13]}  Bb2 {[%clk 0:01:10]} 49. Bh6 {[%clk 0:00:08]}  Bc1 {[%clk 0:00:59]} 50. Bf8 {[%clk 0:00:08]}  Bf4 {[%clk 0:00:57]} 51. Bb4 {[%clk 0:00:08]}  Be5 {[%clk 0:00:51]} 52. c5 {[%clk 0:00:07]}  b5 {[%clk 0:00:35]} 53. axb5 {[%clk 0:00:07]}  axb5 {[%clk 0:00:36]} 54. c6 {[%clk 0:00:07]}  Bd6 {[%clk 0:00:36]} 55. Bd2 {[%clk 0:00:07]}  Be7 {[%clk 0:00:36]} 56. Kd4 {[%clk 0:00:06]}  Bd8 {[%clk 0:00:05]} 57. Kc5 {[%clk 0:00:05]}  b4 {[%clk 0:00:05]} 58. Kxb4 {[%clk 0:00:03]}  Kd6 {[%clk 0:00:04]} 59. Kb5 {[%clk 0:00:03]}  Kd5 {[%clk 0:00:03]} 60. Bb4 {[%clk 0:00:03]}  Ke4 {[%clk 0:00:01]} 61. Ka6 {[%clk 0:00:03]}  Kf3 {[%clk 0:00:01]} 62. Kb7 {[%clk 0:00:03]}  Kg2 {[%clk 0:00:02]} 63. Be7 {[%clk 0:00:02]}  Ba5 {[%clk 0:00:01]} 64. Bxg5 {[%clk 0:00:03]}  Kxh3 {[%clk 0:00:02]} 65. Be7 {[%clk 0:00:02]}  Kxg4 {[%clk 0:00:02]} 66. Bb4 {[%clk 0:00:02]}  Bd8 {[%clk 0:00:01]} 67. Kc8 {[%clk 0:00:02]}  Bb6 {[%clk 0:00:01]} 68. Kb7 {[%clk 0:00:02]}  Bd8 {[%clk 0:00:02]} 69. Bd6 {[%clk 0:00:02]}  h3 {[%clk 0:00:02]} 70. Be5 {[%clk 0:00:02]}  Kf3 {[%clk 0:00:02]} 71. c7 {[%clk 0:00:02]}  Bxc7 {[%clk 0:00:02]} 72. Bxc7 {[%clk 0:00:03]}  Kg2 {[%clk 0:00:03]} 73. Kc8 {[%clk 0:00:04]}  h2 {[%clk 0:00:04]} 74. Bxh2 {[%clk 0:00:05]} 1/2-1/2


[Site "https://www.chess.com"]

[Event "Titled Tuesday Blitz January 31 Early 2023"]
[White "Bochnicka, Vladimir"]
[Black "Ordekalog"]
[WhiteFideId "14943450"]
[WhiteElo "2327"]
[BlackElo "2589"]
[Result "0-1"]
[Round "11"]
[TimeControl "180+2"]
[Date "2023.01.31"]
[WhiteClock "0:00:17"]
[BlackClock "0:01:27"]

1. e4 {[%clk 0:02:59]}  d5 {[%clk 0:02:59]} 2. exd5 {[%clk 0:02:57]}  Qxd5 {[%clk 0:03:00]} 3. Nc3 {[%clk 0:02:57]}  Qa5 {[%clk 0:03:00]} 4. d4 {[%clk 0:02:57]}  Nf6 {[%clk 0:03:00]} 5. Nf3 {[%clk 0:02:56]}  Bg4 {[%clk 0:02:58]} 6. h3 {[%clk 0:02:55]}  Bh5 {[%clk 0:02:57]} 7. g4 {[%clk 0:02:54]}  Bg6 {[%clk 0:02:57]} 8. Ne5 {[%clk 0:02:54]}  Nbd7 {[%clk 0:02:56]} 9. Nc4 {[%clk 0:02:47]}  Qa6 {[%clk 0:02:55]} 10. Bf4 {[%clk 0:02:42]}  Qe6+ {[%clk 0:02:54]} 11. Ne3 {[%clk 0:02:23]}  Qb6 {[%clk 0:02:51]} 12. Qd2 {[%clk 0:02:01]}  Ne4 {[%clk 0:02:46]} 13. Nxe4 {[%clk 0:01:49]}  Bxe4 {[%clk 0:02:47]} 14. Rg1 {[%clk 0:01:49]}  Qxb2 {[%clk 0:02:44]} 15. Rc1 {[%clk 0:01:30]}  e6 {[%clk 0:02:28]} 16. Nc4 {[%clk 0:01:00]}  Qxa2 {[%clk 0:02:25]} 17. Bxc7 {[%clk 0:00:55]}  Rc8 {[%clk 0:02:09]} 18. Qf4 {[%clk 0:00:45]}  Bd5 {[%clk 0:01:40]} 19. Nd6+ {[%clk 0:00:32]}  Bxd6 {[%clk 0:01:39]} 20. Qxd6 {[%clk 0:00:33]}  Qb2 {[%clk 0:01:29]} 21. Qf4 {[%clk 0:00:17]}  Qc3+ {[%clk 0:01:27]} 0-1


[Site "https://www.chess.com"]

[Event "Titled Tuesday Blitz January 31 Early 2023"]
[White "Ambartsumova, Karina"]
[Black "Vetokhin, Ilia"]
[WhiteFideId "4166299"]
[BlackFideId "24156078"]
[WhiteElo "2393"]
[BlackElo "2305"]
[Result "1/2-1/2"]
[Round "11"]
[TimeControl "180+2"]
[Date "2023.01.31"]
[WhiteClock "0:00:06"]
[BlackClock "0:00:09"]

1. e4 {[%clk 0:03:00]}  c5 {[%clk 0:02:52]} 2. Nf3 {[%clk 0:03:00]}  Nc6 {[%clk 0:02:52]} 3. d4 {[%clk 0:02:58]}  cxd4 {[%clk 0:02:53]} 4. Nxd4 {[%clk 0:02:59]}  Nf6 {[%clk 0:02:54]} 5. Nc3 {[%clk 0:02:59]}  d6 {[%clk 0:02:55]} 6. Bg5 {[%clk 0:02:58]}  e6 {[%clk 0:02:55]} 7. Qd2 {[%clk 0:02:53]}  a6 {[%clk 0:02:55]} 8. O-O-O {[%clk 0:02:40]}  Bd7 {[%clk 0:02:55]} 9. f3 {[%clk 0:02:29]}  Be7 {[%clk 0:02:54]} 10. h4 {[%clk 0:02:23]}  b5 {[%clk 0:02:54]} 11. g4 {[%clk 0:02:19]}  Qb6 {[%clk 0:02:53]} 12. Be3 {[%clk 0:02:17]}  Qa5 {[%clk 0:02:31]} 13. Nb3 {[%clk 0:02:06]}  Qc7 {[%clk 0:02:30]} 14. Kb1 {[%clk 0:01:42]}  Ne5 {[%clk 0:02:29]} 15. g5 {[%clk 0:01:18]}  Nh5 {[%clk 0:02:29]} 16. f4 {[%clk 0:01:17]}  Nc4 {[%clk 0:02:28]} 17. Bxc4 {[%clk 0:01:17]}  Qxc4 {[%clk 0:02:16]} 18. Rhe1 {[%clk 0:00:48]}  a5 {[%clk 0:02:01]} 19. Nc5 {[%clk 0:00:24]}  Rc8 {[%clk 0:01:22]} 20. Nxd7 {[%clk 0:00:19]}  Kxd7 {[%clk 0:01:23]} 21. e5 {[%clk 0:00:14]}  d5 {[%clk 0:01:22]} 22. Ne2 {[%clk 0:00:14]}  a4 {[%clk 0:01:16]} 23. Nd4 {[%clk 0:00:13]}  b4 {[%clk 0:01:15]} 24. f5 {[%clk 0:00:13]}  a3 {[%clk 0:00:41]} 25. fxe6+ {[%clk 0:00:11]}  fxe6 {[%clk 0:00:42]} 26. Qg2 {[%clk 0:00:11]}  Bc5 {[%clk 0:00:31]} 27. Nxe6 {[%clk 0:00:10]}  Kxe6 {[%clk 0:00:21]} 28. Bxc5 {[%clk 0:00:10]}  Qxc5 {[%clk 0:00:15]} 29. Qg4+ {[%clk 0:00:10]}  Ke7 {[%clk 0:00:12]} 30. Re2 {[%clk 0:00:10]}  b3 {[%clk 0:00:04]} 31. axb3 {[%clk 0:00:09]}  a2+ {[%clk 0:00:04]} 32. Ka1 {[%clk 0:00:09]}  g6 {[%clk 0:00:04]} 33. e6 {[%clk 0:00:09]}  Ng7 {[%clk 0:00:04]} 34. Qa4 {[%clk 0:00:08]}  Rc7 {[%clk 0:00:03]} 35. Rf1 {[%clk 0:00:07]}  Nf5 {[%clk 0:00:03]} 36. h5 {[%clk 0:00:07]}  Rd8 {[%clk 0:00:03]} 37. hxg6 {[%clk 0:00:07]}  hxg6 {[%clk 0:00:04]} 38. Rh1 {[%clk 0:00:07]}  Rg8 {[%clk 0:00:05]} 39. Rh7+ {[%clk 0:00:07]}  Rg7 {[%clk 0:00:05]} 40. Rh1 {[%clk 0:00:07]}  Qc6 {[%clk 0:00:05]} 41. Qf4 {[%clk 0:00:07]}  Qd6 {[%clk 0:00:05]} 42. Qa4 {[%clk 0:00:07]}  Qc6 {[%clk 0:00:04]} 43. Qb4+ {[%clk 0:00:07]}  Qd6 {[%clk 0:00:05]} 44. Qb8 {[%clk 0:00:07]}  Rc6 {[%clk 0:00:03]} 45. Qh8 {[%clk 0:00:06]}  Rc7 {[%clk 0:00:02]} 46. Rh7 {[%clk 0:00:06]}  Rxh7 {[%clk 0:00:01]} 47. Qxh7+ {[%clk 0:00:07]}  Kd8 {[%clk 0:00:02]} 48. Qg8+ {[%clk 0:00:07]}  Ke7 {[%clk 0:00:02]} 49. Qf7+ {[%clk 0:00:07]}  Kd8 {[%clk 0:00:03]} 50. Qxg6 {[%clk 0:00:08]}  Ne7 {[%clk 0:00:03]} 51. Qf7 {[%clk 0:00:07]}  Kc8 {[%clk 0:00:03]} 52. g6 {[%clk 0:00:07]}  Qg3 {[%clk 0:00:02]} 53. Qe8+ {[%clk 0:00:05]}  Kb7 {[%clk 0:00:03]} 54. g7 {[%clk 0:00:06]}  Qg1+ {[%clk 0:00:03]} 55. Kxa2 {[%clk 0:00:05]}  Qa7+ {[%clk 0:00:04]} 56. Qa4 {[%clk 0:00:05]}  Qg1 {[%clk 0:00:04]} 57. Qb5+ {[%clk 0:00:05]}  Kc8 {[%clk 0:00:04]} 58. Qe8+ {[%clk 0:00:05]}  Kb7 {[%clk 0:00:05]} 59. Qf8 {[%clk 0:00:05]}  Kb6 {[%clk 0:00:05]} 60. b4 {[%clk 0:00:05]}  Ra7+ {[%clk 0:00:06]} 61. Kb3 {[%clk 0:00:06]}  Qg3+ {[%clk 0:00:06]} 62. c3 {[%clk 0:00:05]}  d4 {[%clk 0:00:07]} 63. Qe8 {[%clk 0:00:05]}  dxc3 {[%clk 0:00:07]} 64. bxc3 {[%clk 0:00:05]}  Qd3 {[%clk 0:00:07]} 65. Rg2 {[%clk 0:00:04]}  Qd1+ {[%clk 0:00:08]} 66. Rc2 {[%clk 0:00:04]}  Qb1+ {[%clk 0:00:08]} 67. Rb2 {[%clk 0:00:04]}  Qd1+ {[%clk 0:00:08]} 68. Rc2 {[%clk 0:00:05]}  Qb1+ {[%clk 0:00:09]} 69. Rb2 {[%clk 0:00:05]}  Qd1+ {[%clk 0:00:09]} 70. Rc2 {[%clk 0:00:06]} 1/2-1/2


[Site "https://www.chess.com"]

[Event "Titled Tuesday Blitz January 31 Early 2023"]
[White "Vagman, Roy"]
[Black "Sukandar, Irine Kharisma"]
[WhiteFideId "2828995"]
[BlackFideId "7101937"]
[WhiteElo "2273"]
[BlackElo "2390"]
[Result "0-1"]
[Round "11"]
[TimeControl "180+2"]
[Date "2023.01.31"]
[WhiteClock "0:00:11"]
[BlackClock "0:00:23"]

1. Nf3 {[%clk 0:03:00]}  c5 {[%clk 0:02:59]} 2. e3 {[%clk 0:02:57]}  Nf6 {[%clk 0:02:55]} 3. Be2 {[%clk 0:02:56]}  d5 {[%clk 0:02:54]} 4. b3 {[%clk 0:02:56]}  Nc6 {[%clk 0:02:50]} 5. Bb2 {[%clk 0:02:55]}  g6 {[%clk 0:02:49]} 6. O-O {[%clk 0:02:54]}  Bg7 {[%clk 0:02:49]} 7. d4 {[%clk 0:02:54]}  Ne4 {[%clk 0:02:39]} 8. c4 {[%clk 0:02:34]}  cxd4 {[%clk 0:02:35]} 9. Nxd4 {[%clk 0:02:21]}  O-O {[%clk 0:02:30]} 10. Nxc6 {[%clk 0:02:17]}  bxc6 {[%clk 0:02:30]} 11. Bxg7 {[%clk 0:02:18]}  Kxg7 {[%clk 0:02:30]} 12. Nc3 {[%clk 0:02:18]}  Nxc3 {[%clk 0:02:26]} 13. Qd4+ {[%clk 0:02:17]}  e5 {[%clk 0:02:25]} 14. Qxc3 {[%clk 0:02:15]}  d4 {[%clk 0:02:26]} 15. exd4 {[%clk 0:02:14]}  exd4 {[%clk 0:02:25]} 16. Qg3 {[%clk 0:02:15]}  Qf6 {[%clk 0:02:03]} 17. Rad1 {[%clk 0:02:13]}  Bf5 {[%clk 0:01:55]} 18. Bf3 {[%clk 0:02:04]}  Rac8 {[%clk 0:01:50]} 19. Rfe1 {[%clk 0:01:57]}  c5 {[%clk 0:01:46]} 20. Bd5 {[%clk 0:01:57]}  Rfe8 {[%clk 0:01:46]} 21. h4 {[%clk 0:01:49]}  h5 {[%clk 0:01:45]} 22. Kh2 {[%clk 0:01:36]}  Bg4 {[%clk 0:01:35]} 23. f3 {[%clk 0:01:34]}  Bf5 {[%clk 0:01:35]} 24. Qf4 {[%clk 0:01:23]}  Bc2 {[%clk 0:01:24]} 25. Qxf6+ {[%clk 0:01:14]}  Kxf6 {[%clk 0:01:25]} 26. Rxe8 {[%clk 0:01:10]}  Rxe8 {[%clk 0:01:23]} 27. Rd2 {[%clk 0:01:11]}  d3 {[%clk 0:01:03]} 28. Kg3 {[%clk 0:01:02]}  Ke5 {[%clk 0:00:58]} 29. Bxf7 {[%clk 0:01:01]}  Re7 {[%clk 0:00:54]} 30. Bd5 {[%clk 0:00:43]}  Kd4 {[%clk 0:00:53]} 31. Be4 {[%clk 0:00:36]}  Kc3 {[%clk 0:00:36]} 32. Rf2 {[%clk 0:00:31]}  d2 {[%clk 0:00:34]} 33. Bxc2 {[%clk 0:00:22]}  Kxc2 {[%clk 0:00:34]} 34. Kf4 {[%clk 0:00:21]}  Kd3 {[%clk 0:00:33]} 35. Rxd2+ {[%clk 0:00:20]}  Kxd2 {[%clk 0:00:33]} 36. g4 {[%clk 0:00:20]}  Rf7+ {[%clk 0:00:27]} 37. Ke4 {[%clk 0:00:17]}  Ke2 {[%clk 0:00:23]} 38. gxh5 {[%clk 0:00:16]}  gxh5 {[%clk 0:00:23]} 39. f4 {[%clk 0:00:17]}  Kf2 {[%clk 0:00:23]} 40. f5 {[%clk 0:00:16]}  Kg3 {[%clk 0:00:23]} 41. Ke5 {[%clk 0:00:14]}  Kxh4 {[%clk 0:00:24]} 42. f6 {[%clk 0:00:13]}  Kg5 {[%clk 0:00:23]} 43. b4 {[%clk 0:00:11]}  Rxf6 {[%clk 0:00:22]} 44. bxc5 {[%clk 0:00:09]}  h4 {[%clk 0:00:23]} 45. Kd5 {[%clk 0:00:09]}  h3 {[%clk 0:00:23]} 46. c6 {[%clk 0:00:10]}  h2 {[%clk 0:00:23]} 47. c7 {[%clk 0:00:10]}  h1=Q+ {[%clk 0:00:24]} 48. Kd4 {[%clk 0:00:11]}  Qc6 {[%clk 0:00:23]} 0-1


[Site "https://www.chess.com"]

[Event "Titled Tuesday Blitz January 31 Early 2023"]
[White "Al-Tarboush, Ward"]
[Black "Manukian, Artak"]
[WhiteFideId "7601450"]
[BlackFideId "13301373"]
[WhiteElo "2256"]
[BlackElo "2196"]
[Result "1-0"]
[Round "11"]
[TimeControl "180+2"]
[Date "2023.01.31"]
[WhiteClock "0:00:51"]
[BlackClock "0:00:02"]

1. e4 {[%clk 0:03:00]}  c6 {[%clk 0:03:00]} 2. Nf3 {[%clk 0:03:00]}  d5 {[%clk 0:03:00]} 3. Nc3 {[%clk 0:03:00]}  dxe4 {[%clk 0:03:00]} 4. Nxe4 {[%clk 0:03:01]}  Nf6 {[%clk 0:03:01]} 5. Nxf6+ {[%clk 0:03:00]}  exf6 {[%clk 0:03:02]} 6. Bc4 {[%clk 0:03:01]}  Bd6 {[%clk 0:03:03]} 7. Qe2+ {[%clk 0:03:01]}  Qe7 {[%clk 0:03:03]} 8. Qxe7+ {[%clk 0:03:01]}  Kxe7 {[%clk 0:03:03]} 9. O-O {[%clk 0:03:01]}  Be6 {[%clk 0:03:04]} 10. Re1 {[%clk 0:03:01]}  Re8 {[%clk 0:03:03]} 11. d4 {[%clk 0:03:00]}  Kd7 {[%clk 0:03:03]} 12. Bd3 {[%clk 0:02:59]}  h6 {[%clk 0:02:58]} 13. Be3 {[%clk 0:02:58]}  b5 {[%clk 0:02:49]} 14. c3 {[%clk 0:02:53]}  Na6 {[%clk 0:02:46]} 15. a4 {[%clk 0:02:52]}  Nc7 {[%clk 0:02:43]} 16. axb5 {[%clk 0:02:49]}  cxb5 {[%clk 0:02:44]} 17. Nd2 {[%clk 0:02:48]}  a5 {[%clk 0:02:41]} 18. Ne4 {[%clk 0:02:47]}  Bf8 {[%clk 0:02:34]} 19. Bf4 {[%clk 0:02:43]}  Bc4 {[%clk 0:02:21]} 20. Bxc4 {[%clk 0:02:40]}  bxc4 {[%clk 0:02:22]} 21. Nd2 {[%clk 0:02:41]}  Nd5 {[%clk 0:02:12]} 22. Rxe8 {[%clk 0:02:40]}  Kxe8 {[%clk 0:02:06]} 23. Bg3 {[%clk 0:02:40]}  a4 {[%clk 0:01:53]} 24. Nxc4 {[%clk 0:02:37]}  a3 {[%clk 0:01:53]} 25. Nxa3 {[%clk 0:02:31]}  Bxa3 {[%clk 0:01:44]} 26. Rxa3 {[%clk 0:02:32]}  Rxa3 {[%clk 0:01:44]} 27. bxa3 {[%clk 0:02:32]}  Nxc3 {[%clk 0:01:45]} 28. Kf1 {[%clk 0:02:28]}  Nb5 {[%clk 0:01:40]} 29. a4 {[%clk 0:02:28]}  Nxd4 {[%clk 0:01:40]} 30. Bd6 {[%clk 0:02:20]}  g6 {[%clk 0:01:36]} 31. Bc5 {[%clk 0:02:11]}  Nc6 {[%clk 0:01:30]} 32. Ke2 {[%clk 0:02:07]}  Kd7 {[%clk 0:01:28]} 33. Kd3 {[%clk 0:02:04]}  Ne5+ {[%clk 0:01:23]} 34. Kc3 {[%clk 0:02:02]}  Kc6 {[%clk 0:01:21]} 35. Bd4 {[%clk 0:02:02]}  Nd7 {[%clk 0:01:21]} 36. Kc4 {[%clk 0:02:00]}  f5 {[%clk 0:01:18]} 37. a5 {[%clk 0:02:00]}  Nb8 {[%clk 0:01:09]} 38. Bc3 {[%clk 0:01:58]}  Na6 {[%clk 0:01:06]} 39. Kd4 {[%clk 0:01:58]}  Nc7 {[%clk 0:01:01]} 40. Ke5 {[%clk 0:01:52]}  Kd7 {[%clk 0:00:56]} 41. Bd4 {[%clk 0:01:46]}  h5 {[%clk 0:00:47]} 42. Bb6 {[%clk 0:01:46]}  Na6 {[%clk 0:00:45]} 43. Kf6 {[%clk 0:01:46]}  Ke8 {[%clk 0:00:45]} 44. h4 {[%clk 0:01:44]}  Nb4 {[%clk 0:00:45]} 45. f3 {[%clk 0:01:42]}  Nd5+ {[%clk 0:00:40]} 46. Kg7 {[%clk 0:01:38]}  Nb4 {[%clk 0:00:38]} 47. Bc5 {[%clk 0:01:34]}  Na6 {[%clk 0:00:38]} 48. Bd6 {[%clk 0:01:31]}  Kd7 {[%clk 0:00:38]} 49. Ba3 {[%clk 0:01:31]}  Ke6 {[%clk 0:00:39]} 50. g3 {[%clk 0:01:27]}  Nc7 {[%clk 0:00:38]} 51. Bc1 {[%clk 0:01:21]}  Na6 {[%clk 0:00:36]} 52. Bf4 {[%clk 0:01:21]}  Nc5 {[%clk 0:00:35]} 53. Kh6 {[%clk 0:01:16]}  Na6 {[%clk 0:00:33]} 54. Kg7 {[%clk 0:01:08]}  Nc5 {[%clk 0:00:33]} 55. Kf8 {[%clk 0:01:08]}  Na6 {[%clk 0:00:29]} 56. Ke8 {[%clk 0:01:07]}  f6 {[%clk 0:00:26]} 57. Kf8 {[%clk 0:01:04]}  g5 {[%clk 0:00:22]} 58. hxg5 {[%clk 0:01:02]}  fxg5 {[%clk 0:00:23]} 59. Bxg5 {[%clk 0:01:02]}  Nb4 {[%clk 0:00:16]} 60. Kg7 {[%clk 0:01:00]}  Na6 {[%clk 0:00:13]} 61. Kh6 {[%clk 0:00:59]}  Nc5 {[%clk 0:00:13]} 62. Kxh5 {[%clk 0:00:59]}  Na6 {[%clk 0:00:10]} 63. Bf4 {[%clk 0:00:59]}  Kf6 {[%clk 0:00:09]} 64. g4 {[%clk 0:00:59]}  fxg4 {[%clk 0:00:09]} 65. fxg4 {[%clk 0:01:00]}  Nb4 {[%clk 0:00:08]} 66. Kh6 {[%clk 0:00:58]}  Kf7 {[%clk 0:00:08]} 67. Kh7 {[%clk 0:00:57]}  Nd5 {[%clk 0:00:06]} 68. Be5 {[%clk 0:00:54]}  Ke6 {[%clk 0:00:03]} 69. Bd4 {[%clk 0:00:52]}  Nb4 {[%clk 0:00:02]} 70. g5 {[%clk 0:00:51]} 1-0


[Site "https://www.chess.com"]

[Event "Titled Tuesday Blitz January 31 Early 2023"]
[White "Wahedi, Ahmad Siar"]
[Black "Borrmann, Laurenz"]
[WhiteFideId "4651260"]
[BlackFideId "312187930"]
[WhiteElo "2274"]
[BlackElo "2304"]
[Result "1-0"]
[Round "11"]
[TimeControl "180+2"]
[Date "2023.01.31"]
[WhiteClock "0:00:26"]
[BlackClock "0:00:02"]

1. e4 {[%clk 0:03:00]}  c6 {[%clk 0:02:59]} 2. d4 {[%clk 0:03:00]}  d5 {[%clk 0:02:59]} 3. e5 {[%clk 0:03:00]}  Bf5 {[%clk 0:02:58]} 4. h4 {[%clk 0:03:01]}  h5 {[%clk 0:02:58]} 5. Bd3 {[%clk 0:03:01]}  Bxd3 {[%clk 0:02:57]} 6. Qxd3 {[%clk 0:03:02]}  Qa5+ {[%clk 0:02:57]} 7. Nd2 {[%clk 0:03:01]}  e6 {[%clk 0:02:57]} 8. Nf3 {[%clk 0:02:59]}  Nh6 {[%clk 0:02:56]} 9. O-O {[%clk 0:02:47]}  Nf5 {[%clk 0:02:54]} 10. a4 {[%clk 0:02:44]}  Be7 {[%clk 0:02:40]} 11. g3 {[%clk 0:02:37]}  Qa6 {[%clk 0:02:26]} 12. c4 {[%clk 0:02:35]}  Nd7 {[%clk 0:02:26]} 13. Qc2 {[%clk 0:02:31]}  dxc4 {[%clk 0:02:17]} 14. Nxc4 {[%clk 0:02:30]}  Nb6 {[%clk 0:02:16]} 15. b3 {[%clk 0:02:29]}  Nd5 {[%clk 0:02:05]} 16. Bd2 {[%clk 0:02:19]}  O-O {[%clk 0:02:03]} 17. Qe4 {[%clk 0:02:07]}  c5 {[%clk 0:01:53]} 18. g4 {[%clk 0:01:56]}  hxg4 {[%clk 0:01:50]} 19. Qxg4 {[%clk 0:01:55]}  cxd4 {[%clk 0:01:41]} 20. Nxd4 {[%clk 0:01:54]}  Nxd4 {[%clk 0:01:14]} 21. Qxd4 {[%clk 0:01:55]}  Rfd8 {[%clk 0:01:11]} 22. Qg4 {[%clk 0:01:53]}  Nb6 {[%clk 0:01:11]} 23. Bh6 {[%clk 0:01:50]}  Bf8 {[%clk 0:01:07]} 24. Nd6 {[%clk 0:01:43]}  Nc8 {[%clk 0:00:49]} 25. Ne4 {[%clk 0:01:35]}  Kh8 {[%clk 0:00:32]} 26. Bg5 {[%clk 0:01:25]}  Ne7 {[%clk 0:00:31]} 27. Qh5+ {[%clk 0:01:24]}  Kg8 {[%clk 0:00:31]} 28. Bf6 {[%clk 0:01:03]}  Qd3 {[%clk 0:00:20]} 29. Qg4 {[%clk 0:00:48]}  Rd4 {[%clk 0:00:15]} 30. Rae1 {[%clk 0:00:47]}  Nf5 {[%clk 0:00:13]} 31. Kh1 {[%clk 0:00:38]}  g6 {[%clk 0:00:11]} 32. Rg1 {[%clk 0:00:38]}  Bg7 {[%clk 0:00:10]} 33. h5 {[%clk 0:00:38]}  Bxf6 {[%clk 0:00:10]} 34. Nxf6+ {[%clk 0:00:38]}  Kf8 {[%clk 0:00:10]} 35. Ne4 {[%clk 0:00:35]}  gxh5 {[%clk 0:00:07]} 36. Qxh5 {[%clk 0:00:30]}  Rxe4 {[%clk 0:00:05]} 37. Qh8+ {[%clk 0:00:27]}  Ke7 {[%clk 0:00:05]} 38. Qf6+ {[%clk 0:00:27]}  Kd7 {[%clk 0:00:05]} 39. Rd1 {[%clk 0:00:26]}  Rh4+ {[%clk 0:00:02]} 40. Qxh4 {[%clk 0:00:26]} 1-0


[Site "https://www.chess.com"]